Cogmind - Beta 13 @@@ ROGUE MODE // 2024.04.21 @ 15:26:33 Player: JTMusky Result: Destroyed by G-47 Trooper with Particle Gun Performance ------------- Evolutions (2) 1000 Regions Visited (5) 1000 Robots Destroyed (2) 10 Value Destroyed (20) 20 Prototype IDs (5) 100 Alien Tech Used (0) 0 Bonus (200) 200 TOTAL SCORE: 2330 Bonus ------- Pacifist 200 Cogmind --------- Core Integrity 0/550 Matter 244/300 Energy 100/100 System Corruption 1% Temperature Cool (9) Movement Core (50) Location -8/Materials Parts ------- > --- POWER (1) -------- (None) > --- PROPULSION (2) --- (None) > --- UTILITY (6) ------ (None) > --- WEAPON (2) ------- (None) > --- INVENTORY (5) ---- Small Storage Unit Large Matter Pod (0) Plasma Flamer Peak State ------------ > --- POWER ------------ (None) > --- PROPULSION ------- (None) > --- UTILITY ---------- Core Shielding > --- WEAPON ----------- Plasma Flamer > --- INVENTORY -------- Small Storage Unit Large Matter Pod [Rating: 6] Favorites ----------- Power None Propulsion None Utility Core Shielding Device ECM Suite Storage Small Storage Unit Hackware Hacking Suite Protection Core Shielding Weapon Mining Laser Special Weapon Mining Laser Special Melee Weapon Datajack Build | -11 -10 -10 -9 -9 -8 ------- Run | Yrd Mat Min Mat Min Mat Slots Evolved 4 | . . . 2 . 2 Power . | . . . . . . Propulsion . | . . . . . . Utility 4 | . . . 2 . 2 Weapon . | . . . . . . Parts Attached 16 | . 1 . 9 . 6 Power . | . . . . . . Engine . | . . . . . . Core . | . . . . . . Reactor . | . . . . . . Propulsion . | . . . . . . Treads . | . . . . . . Leg . | . . . . . . Wheel . | . . . . . . Hover . | . . . . . . Flight . | . . . . . . Utility 12 | . 1 . 7 . 4 Device 8 | . 1 . 5 . 2 Storage 1 | . . . 1 . . Processor . | . . . . . . Hackware 1 | . . . . . 1 Protection 2 | . . . 1 . 1 Artifact . | . . . . . . Weapon 4 | . . . 2 . 2 Energy Gun . | . . . . . . Energy Cannon . | . . . . . . Ballistic Gun . | . . . . . . Ballistic Cannon . | . . . . . . Launcher . | . . . . . . Special Weapon 3 | . . . 2 . 1 Impact Weapon . | . . . . . . Slashing Weapon . | . . . . . . Piercing Weapon . | . . . . . . Special Melee Weapon 1 | . . . . . 1 Unidentified Prototypes . | . . . . . . Parts Lost 10 | . . . 4 1 5 Power . | . . . . . . Propulsion . | . . . . . . Utility 7 | . . . 3 . 4 Weapon 3 | . . . 1 1 1 Highest Loss Streak 4 | . . . 4 1 3 To Critical Strikes . | . . . . . . Average Slot Usage (%) 14 | . 10 14 17 10 15 Device 7 | . 10 14 7 . 5 Protection 4 | . . . 8 . 7 Special Weapon 2 | . . . . 10 . Naked Turns 81 | . 12 . 33 2 34 Heaviest Build 4 | . 2 2 4 1 4 Greatest Support 12 | 3 3 3 3 3 12 Greatest Overweight (x) 1 | . . . 1 . 1 Average Overweight (x) . | . . . . . . Largest Inventory Capacity 8 | 5 5 5 8 5 5 Average Capacity 5 | 5 5 5 5 5 5 Most Carried 4 | . . . 4 4 4 Average Carried 1 | . . . 1 2 2 Final Capacity 5 | 5 5 5 5 5 5 Final Carried 4 | . . . 2 4 3 Class Distribution -------------------- 100% | Mutant Dominant Class ---------------- Mutant | -10/Materials Mutant | -10/Mines Mutant | -9/Materials Mutant | -9/Mines Mutant | -8/Materials Resources | -11 -10 -10 -9 -9 -8 ----------- Run | Yrd Mat Min Mat Min Mat Matter Collected 206 | . . 17 39 150 . Remotely . | . . . . . . Salvage Created 39 | . . . 39 . . Parts 5 | . . . 5 . . Haulers Intercepted . | . . . . . . Recyclers Shooed . | . . . . . . Parts Field Recycled . | . . . . . . Retrieved Matter . | . . . . . . Parts Self-Destructed . | . . . . . . Prevented . | . . . . . . Kills | -11 -10 -10 -9 -9 -8 ------- Run | Yrd Mat Min Mat Min Mat Combat Hostiles Destroyed 2 | . . . 2 . . Melee 1 | . . . 1 . . Cannons 1 | . . . 1 . . Classes Destroyed 1 | . . . 1 . . Swarmer 2 | . . . 2 . . Best Kill Streak 2 | . . . 2 . . Combat Bots Only 2 | . . . 2 . . Max Kills in Single Turn 1 | . . . 1 . . Gunslinging . | . . . . . . Exploded . | . . . . . . Melee 1 | . . . 1 . . Uniques/NPCs Destroyed . | . . . . . . Combat | -11 -10 -10 -9 -9 -8 -------- Run | Yrd Mat Min Mat Min Mat Hostile Shots Fired 219 | . 12 21 75 14 97 Missed 83 | . 6 9 26 5 37 Damage Taken 1433 | . 51 107 467 72 736 Core 1093 | . 51 107 336 38 561 Absorbed by Shields . | . . . . . . Redirected to Shielding 97 | . . . 47 . 50 Core Remaining (%) 47 | 100 . 36 . 6 . Volleys Fired 7 | . . . 2 3 2 Largest 1 | . . . 1 1 1 Hottest 100 | . . . 20 100 100 Shots Fired 7 | . . . 2 3 2 Gun . | . . . . . . Cannon . | . . . . . . Launcher . | . . . . . . Special 7 | . . . 2 3 2 Kinetic . | . . . . . . Thermal 7 | . . . 2 3 2 Explosive . | . . . . . . Electromagnetic . | . . . . . . Robot Hit Streak 4 | . . . 1 4 1 Robot Miss Streak 1 | . . . . . 1 Penetration Max . | . . . . . . Secondary Targets . | . . . . . . Shots Hit Robots 6 | . . . 1 3 2 Core Hits 6 | . . . 4 . 2 Critical Kills . | . . . . . . Critical Parts Destroyed . | . . . . . . Critical Strikes 1 | . . . . . 1 Burn 1 | . . . . . 1 Melee Attacks 1 | . . . . . 1 Impact . | . . . . . . Slashing . | . . . . . . Piercing . | . . . . . . Sneak Attacks . | . . . . . . Combat Hostiles . | . . . . . . Follow-up Attacks . | . . . . . . Damage Inflicted 151 | . . . 34 72 45 Guns . | . . . . . . Cannons . | . . . . . . Explosions . | . . . . . . Melee . | . . . . . . Ramming 56 | . . . 24 . 32 Kinetic . | . . . . . . Thermal 95 | . . . 10 72 13 Explosive . | . . . . . . Electromagnetic . | . . . . . . Impact . | . . . . . . Slashing . | . . . . . . Piercing . | . . . . . . Highest Corruption 1 | . . . . . 1 Average Corruption 1 | . . . . . 1 Corruption Purged . | . . . . . . Corruption Blocked . | . . . . . . Overload Shots . | . . . . . . Overflow Damage . | . . . . . . Projectiles . | . . . . . . Explosions . | . . . . . . Melee . | . . . . . . Knockbacks 2 | . . . 1 . 1 Impact 2 | . . . 1 . 1 Kinetic . | . . . . . . Secondary . | . . . . . . Self-Inflicted Damage 23 | . . . 9 . 14 Shots . | . . . . . . Rammed 15 | . . . 8 . 7 Targets Rammed 15 | . . . 8 . 7 Kicked . | . . . . . . Crushed . | . . . . . . Highest Temperature 45 | . . . . . 45 Average Temperature 22 | . . . . . 22 Received Heat Transfer 345 | . . 15 69 . 261 Siege Activations . | . . . . . . Robots Corrupted . | . . . . . . Combat Hostiles . | . . . . . . Parts Fried . | . . . . . . Impact Corruptions . | . . . . . . Robots Melted . | . . . . . . Combat Hostiles . | . . . . . . Parts Melted 1 | . . . 1 . . Heat Transferred 427 | . . . 37 150 240 Parts Sabotaged . | . . . . . . Parts Stolen . | . . . . . . Parts Stripped . | . . . . . . Power Chain Reactions . | . . . . . . Alert | -11 -10 -10 -9 -9 -8 ------- Run | Yrd Mat Min Mat Min Mat Peak Influence 345 | . 110 102 144 55 345 Initial 55 | . . 42 39 55 17 Average 85 | . 40 76 65 54 130 Maximum Alert Level 1 | . . . . . 1 Low Security (%) 89 | 100 100 100 100 100 68 Level 1 10 | . . . . . 31 Level 2 . | . . . . . . Level 3 . | . . . . . . Level 4 . | . . . . . . Level 5 . | . . . . . . High Security . | . . . . . . Max Security . | . . . . . . Squads Dispatched 4 | . 2 . 1 . 1 Investigation . | . . . . . . Extermination . | . . . . . . Reinforcement 4 | . 2 . 1 . 1 Assault . | . . . . . . Garrison . | . . . . . . Intercept . | . . . . . . Searches Triggered . | . . . . . . Construction Impeded . | . . . . . . Haulers Reinforced . | . . . . . . Active Scanning Responses . | . . . . . . Cargo Convoy Interrupts . | . . . . . . Stealth | -11 -10 -10 -9 -9 -8 --------- Run | Yrd Mat Min Mat Min Mat Distress Signals 3 | . 1 . 1 . 1 Communications Jammed . | . . . . . . Distress Signals . | . . . . . . Times Spotted 71 | . 11 8 14 4 34 Peak Tracking Total 16 | . 8 3 12 4 16 Tactical Retreats 11 | . . 3 2 . 6 Traps | -11 -10 -10 -9 -9 -8 ------- Run | Yrd Mat Min Mat Min Mat Traps Triggered . | . . . . . . Indirectly . | . . . . . . Trap Hack Attempts . | . . . . . . Triggered . | . . . . . . Disarmed . | . . . . . . Reprogrammed . | . . . . . . Reused . | . . . . . . Traps Extracted . | . . . . . . Installed . | . . . . . . Triggered . | . . . . . . Machines | -11 -10 -10 -9 -9 -8 ---------- Run | Yrd Mat Min Mat Min Mat Machines Disabled . | . . . . . . Max in Single Turn . | . . . . . . Machines Repaired . | . . . . . . Machines Dismantled . | . . . . . . Machines Sabotaged . | . . . . . . Overloaded Fab Kills . | . . . . . . Hacking | -11 -10 -10 -9 -9 -8 --------- Run | Yrd Mat Min Mat Min Mat Machines Accessed 8 | . 1 . 2 1 4 Terminals 8 | . 1 . 2 1 4 Fabricators . | . . . . . . Repair Stations . | . . . . . . Recycling Units . | . . . . . . Scanalyzers . | . . . . . . Garrison Access . | . . . . . . Total Hacks 18 | . 3 . 8 1 6 Successful 11 | . 2 . 5 1 3 Failed 7 | . 1 . 3 . 3 Catastrophic 2 | . . . . . 2 Database Lockouts . | . . . . . . Manual 4 | . . . 3 . 1 Terminals 18 | . 3 . 8 1 6 Fabricators . | . . . . . . Repair Stations . | . . . . . . Recycling Units . | . . . . . . Scanalyzers . | . . . . . . Garrison Access . | . . . . . . Terminal Hacks 11 | . 2 . 5 1 3 Record 3 | . . . 3 . . Prototype ID Bank 3 | . 1 . 1 . 1 Alert Level 2 | . . . 1 . 1 Maintenance Status 1 | . . . . . 1 Zone Layout 2 | . 1 . . 1 . Fabricator Hacks . | . . . . . . Repair Station Hacks . | . . . . . . Recycling Unit Hacks . | . . . . . . Scanalyzer . | . . . . . . Garrison Access Hacks . | . . . . . . Unauthorized Hacks . | . . . . . . Terminals . | . . . . . . Fabricators . | . . . . . . Repair Stations . | . . . . . . Recycling Units . | . . . . . . Scanalyzers . | . . . . . . Garrison Access . | . . . . . . Data Cores Recovered . | . . . . . . Used . | . . . . . . Hacking Detections 5 | . . . 2 . 3 Full Trace Events . | . . . . . . Feedback Events . | . . . . . . Feedback Blocked . | . . . . . . Robot Schematics Acquired . | . . . . . . Robots Built . | . . . . . . Authchips . | . . . . . . Time . | . . . . . . Total Robot Build Rating . | . . . . . . Part Schematics Acquired . | . . . . . . Parts Built . | . . . . . . Authchips . | . . . . . . Time . | . . . . . . Total Part Build Rating . | . . . . . . Parts Repaired . | . . . . . . Time . | . . . . . . Parts Recycled . | . . . . . . Recycled Matter . | . . . . . . Retrieved Matter . | . . . . . . Retrieved Components . | . . . . . . Parts Scanalyzed . | . . . . . . Part Schematics Acquired . | . . . . . . Parts Damaged . | . . . . . . Bothacking | -11 -10 -10 -9 -9 -8 ------------ Run | Yrd Mat Min Mat Min Mat Used RIF Installer . | . . . . . . Robots Hacked 1 | . . . . . 1 Non-combat . | . . . . . . Combat 1 | . . . . . 1 Robot Hacks Applied 1 | . . . . . 1 parse_system 1 | . . . . . 1 Relay Couplers Released . | . . . . . . Fabnet Peak Effective % . | . . . . . . Robots Rewired . | . . . . . . Allies Hacked . | . . . . . . Hacks Repelled . | . . . . . . Allies | -11 -10 -10 -9 -9 -8 -------- Run | Yrd Mat Min Mat Min Mat Total Allies . | . . . . . . Largest Group . | . . . . . . Highest-Rated Group . | . . . . . . Highest-Rated Ally . | . . . . . . Total Orders . | . . . . . . Ally Attacks . | . . . . . . Total Damage . | . . . . . . Kills . | . . . . . . Allies Corrupted . | . . . . . . Allies Melted . | . . . . . . Intel | -11 -10 -10 -9 -9 -8 ------- Run | Yrd Mat Min Mat Min Mat Robot Analysis Total . | . . . . . . Derelict Logs Recovered 2 | . . 2 . . . Drone Launches . | . . . . . . Drone Recoveries . | . . . . . . Exploration | -11 -10 -10 -9 -9 -8 ------------- Run | Yrd Mat Min Mat Min Mat Turns Passed 987 | 11 45 181 246 177 327 Spaces Moved 1644 | 23 85 353 356 301 526 Core 1644 | 23 85 353 356 301 526 Treads . | . . . . . . Legs . | . . . . . . Wheels . | . . . . . . Hover . | . . . . . . Flight . | . . . . . . Fastest Speed 50 | 50 50 50 50 50 50 Average Speed 50 | 50 50 50 51 50 50 Slowest Speed 100 | 50 50 50 100 50 100 Overloaded Moves . | . . . . . . Propulsion Burnouts . | . . . . . . Robots Hopped . | . . . . . . Cave-ins Triggered . | . . . . . . Exploration Rate (%) 40 | 3 25 81 28 57 50 Regions Visited 5 Branch Regions 2 Pre-discovered Areas . | . . . . . . Known Exits Taken . | . . . . . . Unknown Exits Taken 5 | 1 1 1 1 1 . Scrap Searched 1 | . . 1 . . . Spaces Dug . | . . . . . . Terrain Destroyed . | . . . . . . Melee . | . . . . . . Projectile . | . . . . . . AOE . | . . . . . . Terrain Rammed . | . . . . . . Walls Destroyed . | . . . . . . Machines Disabled . | . . . . . . Actions | -11 -10 -10 -9 -9 -8 --------- Run | Yrd Mat Min Mat Min Mat Total 1780 | 22 86 356 415 317 584 Wait 89 | . 1 4 31 12 41 Move 1639 | 22 84 352 355 300 526 Hop . | . . . . . . Pick Up 8 | . . . 6 2 . Fast Attach 6 | . 1 . 1 . 4 Attach 8 | . . . 6 . 2 Detach 4 | . . . 3 . 1 Swap 2 | . . . 2 . . Drop 1 | . . . 1 . . Fire 7 | . . . 2 3 2 Melee 1 | . . . . . 1 Ram 15 | . . . 8 . 7 Kick . | . . . . . . Crush . | . . . . . . Escape Stasis . | . . . . . . Rewire . | . . . . . . Trap . | . . . . . . Miscellaneous . | . . . . . . Route ------- -11/Scrapyard -10/Materials -10/Mines (discovered 2 exits: *Mat x2) -9/Materials -9/Mines (discovered 2 exits: *Mat x2) -8/Materials History --------- Turn | Location | Event 3 | -11/Scrapyard | Discovered new exit (range 15) 12 | -11/Scrapyard | Entered Materials 51 | -10/Materials | Discovered new exit (range 10) 57 | -10/Materials | Entered Mines 63 | -10/Mines | Learned Materials non-interactive machine intel 74 | -10/Mines | Discovered new exit (range 14) 110 | -10/Mines | Discovered new exit (range 9) 179 | -10/Mines | Core integrity fell below 50% 238 | -10/Mines | Entered Materials 238 | -9/Materials | Evolved 2 slots: Utility x2 239 | -9/Materials | Loaded intel: 44 non-interactive machine locations 301 | -9/Materials | Build established: Mutant 453 | -9/Materials | Core integrity fell below 50% 474 | -9/Materials | Core integrity fell below 20% 478 | -9/Materials | Discovered new exit (range 7) 484 | -9/Materials | Entered Mines 486 | -9/Mines | Discovered new exit (range 7) 489 | -9/Mines | Lost 4 parts (3u1w) 586 | -9/Mines | A weapon hastily lodged in a ceiling crevice suddenly fell to the ground 650 | -9/Mines | Discovered new exit (range 13) 661 | -9/Mines | Entered Materials 661 | -8/Materials | Evolved 2 slots: Utility x2 924 | -8/Materials | Core integrity fell below 50% 962 | -8/Materials | Core integrity fell below 20% 988 | -8/Materials | Destroyed by G-47 Trooper with Particle Gun Last Messages --------------- 00946_ O-16 Technician destroyed. 00952_ Acquired Datajack. 00956_ Jacked G-47 Trooper... >>parse_system Reading system data... 00958_ Hacking Suite destroyed. 00958_ Datajack destroyed. 00959_ Sensor Array destroyed. 00960_ Slammed into G-47 Trooper. 00960_ G-47 Trooper knocked back. 00960_ U-05 Engineer lays Concrete. 00961_ Slammed into G-47 Trooper. 00961_ Critical hit (Burn: +37). 00962_ K-01 Serf collects debris. 00964_ U-05 Engineer lays Concrete. 00966_ U-05 Engineer builds a Wall. 00969_ Drone sends a signal. 00974_ Slammed into R-06 Scavenger. 00986_ Slammed into G-50 Soldier. 00987_ Slammed into R-06 Scavenger. Map ----- +----------------------------------------------------+ | ???????????????????????????????????? | | ???????????????????????????????????? | | ???????????????????????????????????? | | ???????????????????????????????????? | | ???????????????????????????????????? | | ???????????????????????????????????? | | ???????????????????????????????????? | | ???????????????????????????????????? | | ???????????????????????????????????? | | ???????????????????????????????????? | | ???????????????????????????????????? | | ???????????????????????????????????? | | ???????????????????????????????????? | | ??????????????????????????????????## | | ??????????????????????????????????# | | ??????????????????????????????????# | | ??????????????????????????????????# | | ???????????????????????????????#??# | | ??????????????????????????? #??# | | ???????????????????????????""" #??## | | ???????????????????????????""" #???# | | ???????????????????????????""" ????# | | ??????????????????????????? ?????# | | ?????????????????????????##/######## | | ?????#+################### | | ?????# gg@ gr rg gg ####### | | ?????# ################### #?????# | | ?????????????????????????# #?????# | | ?????????????????######??# #?????# | | ?????????????????# ??# #?????# | | ?????????????????# ?# #?????# | | ?????????????????# ?# #?????# | | ?????????????????# # #????## | | ?????????????????? """ # #????# | | ???????????????????""""" + #????# | | ???????????????????""""" # #????# | | ???????????????????""""" # #????# | | ??????????????????? """ ?# #????# | | ??????????????????? ?# #????## | | ??????????????????? ??# ####??? | | ??????????????????#####??# # #??? | | ?????????????????????????# #??? | | ???????????????########### # #??? | | ???????????????# ## ####??? | | ???????????????# """ ## ##????# | | ???????????????# """ # ###### | | ???????????????# """ # = | | ???????????????# / %T = | | ???????????????#! [ "" # | | ???????????????# S"" # # | +----------------------------------------------------+ Best States ------------- Heat Dissipation 31 Energy Generation 5 Energy Capacity 100 Matter Stores 253 Matter Capacity 300 Sight Range 16 Robot Scan Range 14 Terrain Scan Density 10 ECM Strength 1 Core Shielding 20 Evasion (%) 50 Offensive Hacking 10 Item Schematics ----------------- None Robot Schematics ------------------ None Fabricated ------------ Nothing Alien Tech Used ----------------- None Achievements -------------- Close Call Fist Fight Challenges ------------ None Game ------ Seed BurstMiniField Manual? 0 Play Time 00:37:27 Cumulative 20.8 hours Start 2024.04.21 @ 14:35:27 End 2024.04.21 @ 15:26:33 Sessions 3 Manual Loads 0 Difficulty Rogue Special Mode None Game No. 22 Rogue 22 Adventurer 0 Explorer 0 Win Type - Total 0 Types 0/0/0/0/0/0/0/0/0 Lore% 9 Gallery% 14 Achievement% 16 Wizard Run 0 Options --------- Layout 2 ASCII 1 Keyboard 1 Movement Vi Keybinds 0 Fullscreen 2 Font 40/SmallcapsGlow Map View 50x44 Zoom Use 0% Tactical HUD 1 Map Filters NONE Filters NONE Steam 0 RUN: 03ac43cb-c25b-4e91-b19a-3bb8becf7722